bitfinex-derivatives/quotes_ETHF0:USTF0_20250213
["timestamp","ask_amount","ask_price","bid_price","bid_amount"]
[1739458744921,0.75775,2639.0,2638.9,0.00568936]
[1739458748821,3.6442,2639.1,2638.9,0.00568936]
[1739458749010,1.8754,2639.1,2638.9,0.00568936]
[1739458749216,1.8754,2639.1,2639.0,0.75775]
[1739458749418,2.63313,2639.1,2639.0,0.75775]
[1739458749622,0.75775,2639.0,2638.9,0.00568936]
[1739458750724,1.89455,2638.8,2638.0,1.8857]
[1739458750918,3.2078,2638.4,2637.9,3.2078]
[1739458751318,0.758,2638.2,2637.9,3.2078]
[1739458751520,3.2078,2638.4,2638.1,0.75801]
[1739458751730,0.75797,2638.3,2638.1,0.75801]
[1739458751918,3.2078,2638.4,2638.3,0.75795]
[1739458752118,0.75796,2638.3,2638.2,0.75797]
[1739458752420,3.96574,2638.4,2638.0,0.00568936]
[1739458752724,0.75796,2638.3,2638.2,0.75797]
[1739458752923,0.758,2638.2,2638.0,0.00568936]
[1739458753118,3.2078,2638.4,2638.0,0.76370936]
[1739458753317,3.2078,2638.4,2638.0,0.00568936]
[1739458753527,0.75801,2638.1,2638.0,0.00568936]
[1739458753922,0.75801,2638.1,2638.0,0.76372936]
[1739458754320,0.75801,2638.1,2638.0,0.00568936]
[1739458754321,3.96581,2638.1,2638.0,0.00568936]
[1739458754516,3.2078,2638.1,2638.0,0.76372936]
[1739458754721,0.75801,2638.1,2638.0,0.76372936]
[1739458754921,1.9455,2638.2,2638.0,0.00568936]
[1739458755123,2.70348,2638.2,2638.1,0.75801]
[1739458755319,3.2078,2638.4,2638.0,3.95519098]
[1739458755515,3.2078,2638.4,2638.3,0.75795]
[1739458756123,2.6511,2638.9,2638.8,0.75781]
[1739458756324,0.7578,2638.9,2638.8,0.7578]
[1739458756525,3.2078,2639.1,2638.4,5.7187]
[1739458756727,0.7578,2638.9,2638.8,0.7578]
[1739458757127,0.75785,2638.7,2638.6,0.75784]
[1739458757326,3.2078,2639.1,2638.4,5.7187]
[1739458757524,3.2078,2639.1,2638.6,3.94950162]
[1739458757822,3.8739,2639.3,2638.6,5.84415162]
[1739458758023,0.75774,2639.1,2639.0,0.75773]
[1739458758529,0.75771,2639.2,2639.1,0.75771]
[1739458758930,1.927,2639.3,2638.6,5.84415162]
[1739458759128,3.20780936,2639.4,2639.3,0.75767]
[1739458760222,9.36e-06,2639.4,2639.3,0.75767]
[1739458761429,9.36e-06,2639.4,2639.2,3.94950162]
[1739458761734,9.36e-06,2639.4,2639.2,0.75769]
[1739458761935,9.36e-06,2639.4,2639.3,0.75767]
[1739458765629,0.75764936,2639.4,2639.2,3.94950162]
[1739458765937,0.75767,2639.3,2639.2,0.75769]
[1739458766127,0.7577,2639.2,2639.1,1.7676]
[1739458766329,9.36e-06,2639.4,2638.9,7.15730162]
[1739458766634,0.75775,2639.0,2638.9,3.96557]
[1739458767138,3.96552,2639.2,2639.1,0.75773]
[1739458767332,3.2078,2639.2,2638.8,2.059]
[1739458767536,0.75774,2639.1,2639.0,0.75773]
[1739458767736,5.11850936,2639.4,2638.8,2.059]
[1739458768036,0.75777,2639.0,2638.9,0.75776]
[1739458768636,0.75775,2639.1,2639.0,0.75774]
[1739458769233,3.2078,2639.1,2638.8,2.059]
[1739458769435,1.89439,2639.0,2638.3,7.15730162]
[1739458769633,3.2078,2638.7,2638.3,3.94950162]
[1739458769830,0.75795,2638.3,2638.2,3.6699]
[1739458770035,3.2078,2638.4,2638.2,3.6699]
[1739458770343,6.2028,2638.7,2638.2,3.6699]
[1739458770845,3.2078,2639.2,2638.6,3.94950162]
[1739458771137,3.96551,2639.2,2639.0,0.75774]
[1739458771328,3.2078,2639.2,2638.7,3.2078]
[1739458771533,3.2078,2639.2,2639.1,0.75773]
[1739458772742,9.36e-06,2639.4,2638.9,3.94950162]
[1739458773044,9.36e-06,2639.4,2639.2,0.75769]
[1739458773341,3.20780936,2639.4,2639.3,0.75767]
[1739458773836,3.20780936,2639.4,2638.9,5.73350162]
[1739458774241,3.96545936,2639.4,2639.3,0.75767]
[1739458774545,3.20780936,2639.4,2638.9,5.73350162]
[1739458774741,3.20780936,2639.4,2639.2,0.75769]
[1739458775048,0.75767,2639.3,2638.9,5.73350162]
[1739458775237,3.20780936,2639.4,2639.3,0.75767]
[1739458775637,9.36e-06,2639.4,2639.3,0.75767]
[1739458780140,9.36e-06,2639.4,2639.3,2.81467]
[1739458780351,9.36e-06,2639.4,2639.3,8.81467]
[1739458781044,9.36e-06,2639.4,2639.3,2.81467]
[1739458783151,9.36e-06,2639.4,2639.3,8.81467]
[1739458783951,1.9218,2640.2,2639.3,8.057]
[1739458784255,1.8707,2640.4,2640.3,0.75738]
[1739458784443,1.8707,2640.4,2640.0,3.38757772]
[1739458784848,2.62805,2640.4,2640.3,0.75738]
[1739458785346,1.8707,2640.4,2640.0,3.38757772]
[1739458785547,0.75744,2640.1,2640.0,4.14501772]
[1739458785746,0.75743,2640.2,2640.1,0.75742]
[1739458786455,1.8707,2640.4,2640.0,3.38757772]
[1739458786650,1.8707,2640.4,2640.3,0.75738]
[1739458786651,2.62808,2640.4,2640.3,0.75738]
[1739458786855,1.8707,2640.4,2640.3,0.75738]
[1739458788461,2.62805,2640.4,2640.3,0.75738]
[1739458788758,1.8707,2640.4,2640.3,0.75738]
[1739458790156,2.62805,2640.4,2640.3,0.75738]
[1739458790654,1.8707,2640.4,2639.9,0.00568936]
[1739458791168,0.75747,2640.1,2640.0,0.75744]
[1739458791365,0.75747,2640.0,2639.9,0.00568936]
[1739458791567,2.52507,2640.0,2639.9,0.00568936]
[1739458791871,2.52507,2640.0,2639.9,0.76318936]
[1739458792167,2.52507,2640.0,2639.9,0.00568936]
[1739458792371,2.52507,2640.0,2639.1,23.23057772]
[1739458792372,11.15517772,2640.0,2639.1,23.23057772]
[1739458792670,0.75768,2639.3,2639.2,0.75767]
[1739458792865,3.2078,2639.4,2638.8,8.48988772]
[1739458793060,3.2078,2639.4,2638.8,3.38757772]
[1739458793367,3.2078,2639.4,2638.8,3.39326708]
[1739458793569,3.2078,2639.1,2638.8,0.00568936]
[1739458794064,0.75778,2638.9,2638.8,0.00568936]
[1739458794969,6.0,2638.9,2638.0,2.81203]
[1739458795164,0.75798,2638.2,2638.0,0.75803]
[1739458795362,6.59537772,2638.2,2637.3,3.38757772]
[1739458795572,3.9659,2637.9,2637.5,0.75817]
[1739458796068,3.2078,2637.9,2637.4,0.00568936]
[1739458796370,3.2078,2637.9,2637.4,0.76388936]
[1739458796571,0.75813,2637.7,2637.4,0.00568936]
[1739458796873,3.2078,2637.9,2637.4,0.00568936]
[1739458797064,3.2078,2637.9,2637.7,0.75812]
[1739458797265,3.2078,2637.9,2637.4,0.00568936]
[1739458797468,3.96589,2637.9,2637.5,0.75817]
[1739458797764,3.2078,2637.9,2637.6,0.75814]
[1739458798070,0.7581,2637.8,2637.4,0.76389936]
[1739458798268,0.75814,2637.7,2637.4,0.00568936]
[1739458798470,1.7902,2638.1,2637.4,0.00568936]
[1739458798471,3.96604,2637.6,2637.4,0.00568936]
[1739458798667,3.2078,2637.6,2637.4,0.00568936]
[1739458799275,2.05968936,2637.8,2637.5,0.75825]
[1739458799471,0.76385936,2637.8,2637.5,0.75824]
[1739458799678,3.2078,2637.6,2637.4,0.00568936]
[1739458799968,0.75825,2637.5,2637.4,0.00568936]
[1739458800370,3.2078,2637.6,2637.5,0.75825]
[1739458800569,0.00568936,2637.8,2637.7,0.7582]
[1739458800872,0.00568936,2637.8,2637.6,0.75821]
[1739458801175,0.75825,2637.5,2637.4,0.00568936]
[1739458801476,0.75825,2637.5,2636.5,1.9185]
[1739458801477,0.75847,2636.8,2636.5,0.75854]
[1739458801663,3.96626,2636.8,2636.4,23.78655638]
[1739458801866,0.75849,2636.7,2636.4,20.59756]
[1739458802071,0.75852,2636.6,2636.3,0.75858]
[1739458802272,3.2078,2636.4,2636.0,1.8762]
[1739458802472,3.2078,2636.4,2636.2,0.00568936]
[1739458802869,3.96638,2636.4,2636.2,0.00568936]
[1739458803173,0.7586,2636.3,2636.2,0.00568936]
[1739458803475,3.94755638,2636.3,2635.0,3.2078]
[1739458803667,0.75902,2634.9,2634.6,3.94755638]
[1739458803870,3.2078,2635.1,2634.6,3.94755638]
[1739458804074,3.2078,2635.1,2634.7,0.75904]
[1739458804273,0.7591,2634.6,2634.3,27.31285703]
[1739458804577,3.2078,2635.1,2634.3,0.30650065]
[1739458804578,3.2078,2634.5,2634.3,0.30650065]
[1739458804770,3.2078,2634.5,2634.2,0.00568936]
[1739458805075,3.2078,2634.5,2634.2,0.76486936]
[1739458805268,0.00568936,2634.7,2634.3,3.94755638]
[1739458805467,0.00568936,2634.7,2634.2,0.00568936]
[1739458805468,0.00568936,2634.7,2634.6,4.70664638]
[1739458805876,0.00568936,2634.7,2634.6,3.94755638]
[1739458806079,3.21348936,2634.7,2634.3,3.94755638]
[1739458806270,3.2078,2634.4,2634.2,0.00568936]
[1739458807178,0.75917,2634.3,2634.2,0.00568936]
[1739458807371,3.2078,2634.4,2634.2,0.00568936]
[1739458807574,3.2078,2634.4,2634.3,4.70672638]
[1739458807776,0.00568936,2634.7,2634.6,0.75909]
[1739458807971,3.21348936,2634.7,2634.2,0.00568936]
[1739458808174,0.75917,2634.3,2634.2,0.00568936]
[1739458809382,3.2078,2634.4,2633.4,3.94755638]
[1739458809578,3.2078,2633.8,2633.5,0.75938]
[1739458809771,3.2078,2634.1,2633.7,3.94755638]
[1739458809971,3.2078,2634.5,2634.0,3.94755638]
[1739458810179,0.00568936,2634.7,2634.3,3.94755638]
[1739458810377,3.2078,2635.2,2634.6,3.94755638]
[1739458810577,3.2078,2635.2,2635.1,0.75894]
[1739458810976,3.6913,2635.8,2635.0,5.10524]
[1739458811278,3.2078,2635.5,2635.2,3.94755638]
[1739458811483,3.96665,2635.5,2635.3,40.8]
[1739458811778,3.96663,2635.5,2635.2,4.70645638]
[1739458811975,3.2078,2635.5,2635.1,0.00568936]
[1739458812181,3.96671,2635.2,2635.1,0.00568936]
[1739458812481,3.2078,2635.2,2634.3,3.94755638]
[1739458812678,3.2078,2634.6,2634.0,4.70681638]
[1739458812883,3.2078,2634.3,2634.1,0.75921]
[1739458813184,0.75925,2634.1,2633.7,3.94755638]
[1739458813486,0.75934,2633.8,2633.4,4.70697638]
[1739458813780,3.02672903,2633.7,2633.6,0.00379292]
[1739458814078,3.78607903,2633.7,2633.6,0.00379292]
[1739458814280,5.57007903,2633.7,2633.6,0.00379292]
[1739458814673,4.81072903,2633.7,2633.6,0.00379292]
[1739458814874,5.57007903,2633.7,2633.6,0.00379292]
[1739458815070,4.81072903,2633.7,2633.6,0.00379292]
[1739458815377,5.57007903,2633.7,2633.6,0.00379292]
[1739458815582,4.81072903,2633.7,2633.6,0.00379292]
[1739458815983,4.81072903,2633.7,2632.8,4.40636302]
[1739458816179,3.2078,2633.2,2632.5,19.87]
[1739458816381,3.2078,2633.2,2632.5,23.0778]
[1739458816677,1.784,2633.7,2632.5,23.0778]
[1739458816678,3.2078,2633.5,2632.5,23.0778]
[1739458816882,3.2078,2633.0,2632.5,19.87]
[1739458817382,3.2078,2632.9,2632.5,19.87]
[1739458817584,3.96728,2633.3,2632.9,0.75955]
[1739458817885,3.9126,2633.6,2633.4,0.75942]
[1739458817886,3.2078,2633.6,2633.4,0.75942]
[1739458818083,3.96718,2633.6,2633.2,0.75947]
[1739458818277,3.2078,2633.6,2632.8,7.61416302]
[1739458818584,3.2078,2633.6,2633.5,0.7594]
[1739458819084,0.00568936,2633.9,2633.8,0.75932]
[1739458819683,0.00568936,2633.9,2633.7,2.054]
[1739458819885,0.76500936,2633.9,2633.5,0.75939]
[1739458820189,0.75942,2633.5,2633.3,3.8264]
[1739458820580,3.2078,2633.7,2633.0,3.2078]
[1739458820787,0.75945,2633.4,2633.1,0.75952]
[1739458820988,3.2078,2633.7,2633.0,3.2078]
[1739458821382,0.75947,2633.3,2633.1,0.75951]
[1739458821691,3.2078,2633.3,2632.7,1.8486]
[1739458821985,3.2078,2633.0,2632.5,24.27636302]
[1739458822189,3.96744,2632.7,2632.5,19.87]
[1739458822386,3.2078,2632.7,2632.5,19.87]
[1739458822692,0.75959,2632.9,2632.6,0.75966]
[1739458822991,3.2078,2633.0,2632.5,19.87]
[1739458823186,3.2078,2633.4,2632.5,24.27636302]
[1739458823386,3.2078,2633.4,2632.6,2.054]
[1739458823590,3.2078,2633.1,2632.6,2.054]
[1739458823790,3.96733,2633.1,2632.8,0.75958]
[1739458824091,3.2078,2633.1,2633.0,0.75955]
[1739458824386,3.2078,2633.1,2632.6,2.054]
[1739458824583,3.2078,2633.1,2632.6,2.81365]
[1739458824787,3.96742,2632.8,2632.5,20.62966]
[1739458824994,3.96742,2632.8,2632.6,0.75965]
[1739458825176,1.5191,2633.0,2632.8,0.75959]
[1739458825378,0.1714,2632.7,2632.5,19.68892903]
[1739458825884,0.1714,2632.7,2632.4,0.30619011]
[1739458826085,0.1714,2632.7,2632.1,6.9667]
[1739458826282,0.75967,2632.6,2632.4,0.75971]
[1739458826790,0.1714,2632.7,2632.6,0.75966]
[1739458826991,0.1714,2632.7,2632.1,7.28206291]
[1739458826992,0.18994,2632.5,2632.4,0.75972]
[1739458827180,0.18994,2632.5,2632.3,0.75973]
[1739458827683,0.18994,2632.5,2631.8,3.83848]
[1739458827684,3.2078,2632.0,2630.2,4.40636302]
[1739458827989,2.054,2632.4,2630.5,0.76025]
[1739458827990,3.2078,2630.8,2630.5,0.76025]
[1739458828488,3.2078,2630.8,2630.7,0.76021]
[1739458828691,0.3041,2630.7,2630.6,0.76023]
[1739458829084,0.00570028,2631.4,2631.3,0.76004]
[1739458829480,3.2078,2631.8,2631.1,3.2078]
[1739458829690,3.2078,2631.8,2631.1,1.9428]
[1739458829891,3.2078,2631.5,2631.1,1.9428]
[1739458830079,3.2078,2631.8,2631.7,0.75992]
[1739458830284,3.2078,2631.8,2631.7,0.45762]
[1739458830493,3.2078,2631.8,2631.4,4.40636302]
[1739458830687,3.2078,2631.8,2631.3,3.8346]
[1739458830885,3.2078,2631.8,2631.5,0.76567028]
[1739458831086,3.2078,2631.8,2631.5,0.00570028]
[1739458831481,0.75994,2631.7,2631.5,0.00570028]
[1739458831691,3.2078,2631.8,2631.5,0.00570028]
[1739458831692,0.75995,2631.6,2631.5,0.00570028]
[1739458831894,0.75993,2631.7,2631.5,0.00570028]
[1739458832097,3.2078,2631.8,2631.5,0.76566028]
[1739458832299,3.2078,2631.8,2631.5,0.00570028]
[1739458832593,0.75995,2631.6,2631.5,0.00570028]
[1739458832986,3.96771,2631.8,2631.5,0.00570028]
[1739458833286,3.2078,2631.8,2631.5,0.76566028]
[1739458833489,3.2078,2631.8,2631.7,0.75992]
[1739458834896,2.24394,2632.5,2631.6,1.9176]
[1739458834897,3.2078,2632.1,2631.6,1.9176]
[1739458835088,0.75986,2632.0,2631.7,2.054]
[1739458835288,0.75986,2632.0,2631.9,0.75987]
[1739458835595,0.75986,2632.0,2631.8,0.75987]
[1739458835792,0.75986,2632.0,2631.7,2.054]
[1739458835983,3.2078,2631.8,2631.7,2.81391]
[1739458836186,0.75992,2631.7,2631.6,1.9176]
[1739458836382,3.2078,2631.8,2631.6,2.67754]
[1739458836590,3.2078,2631.8,2631.7,0.75992]
[1739458837785,3.9677,2631.8,2631.6,1.9176]
[1739458837990,0.75992,2631.7,2631.5,2.05970028]
[1739458838195,3.2078,2631.8,2631.6,0.75993]
[1739458838390,3.2078,2631.8,2631.7,0.75992]
[1739458838797,4.73310028,2632.1,2632.0,0.75984]
[1739458838999,4.73310028,2632.1,2631.5,2.05970028]
[1739458839200,3.21350028,2632.1,2631.5,2.05970028]
[1739458839501,3.97332028,2632.1,2631.5,2.05970028]
[1739458839699,3.21350028,2632.1,2631.5,2.05970028]
[1739458839895,3.21350028,2632.1,2632.0,0.75984]
[1739458840299,0.00570028,2632.1,2632.0,0.75984]
[1739458840598,4.7273,2632.4,2632.3,0.75975]
[1739458840599,1.5195,2632.4,2632.3,0.75975]
[1739458840901,0.18994,2632.5,2632.4,0.75972]
[1739458841198,0.95149999,2632.8,2632.7,0.75963]
[1739458841397,0.95149999,2632.8,2632.3,0.3041065]
[1739458841589,3.5116,2632.8,2632.4,2.054]
[1739458841794,0.3038,2632.8,2632.7,0.75963]
[1739458841995,2.054,2633.5,2632.7,0.75963]
[1739458841996,3.2078,2633.7,2632.9,1.89889]
[1739458842195,3.2078,2633.7,2632.6,4.40636302]
[1739458842196,3.2078,2633.7,2633.6,0.75938]
[1739458842498,0.30661236,2634.9,2633.6,0.75938]
[1739458842499,3.2078,2634.3,2633.6,2.054]
[1739458843099,3.2078,2634.0,2633.6,2.054]
[1739458843399,4.346,2634.0,2633.9,0.69299]
[1739458843698,4.346,2634.0,2633.7,0.00570028]
[1739458844092,0.75932,2633.8,2633.7,0.00570028]
[1739458845294,0.75932,2633.8,2632.6,4.40636302]
[1739458845295,8.053,2633.8,2632.4,1.8777]
[1739458845497,3.2078,2632.9,2632.5,0.75967]
[1739458845698,1.89845,2633.6,2632.3,2.35797272]
[1739458845699,3.2078,2632.6,2632.4,0.75971]
[1739458845996,3.2078,2632.6,2632.3,2.053]
[1739458846203,3.2078,2632.6,2632.3,2.81274]
[1739458846500,3.2078,2632.6,2632.3,2.053]
[1739458846703,3.2078,2632.6,2632.5,0.75969]
[1739458847904,0.00570028,2632.7,2632.6,0.75966]
[1739458848300,3.2078,2633.5,2632.7,1.89906]
[1739458848496,3.2078,2633.8,2633.0,4.40636302]
[1739458848693,2.0875,2634.1,2634.0,0.75926]
[1739458849004,4.27062,2634.2,2633.9,0.75927]
[1739458849395,3.5114,2634.2,2633.6,3.9566]
[1739458849599,3.5114,2634.2,2633.8,0.00570028]
[1739458850302,3.2078,2633.9,2633.8,0.00570028]
[1739458850901,3.2078,2633.9,2633.8,0.76500028]
[1739458851204,2.0873,2634.1,2633.8,0.00570028]
[1739458851404,0.00570028,2634.3,2633.9,40.8]
[1739458851600,3.2078,2634.5,2634.4,0.75914]
[1739458851804,3.6573,2634.9,2634.3,3.2078]
[1739458852104,1.7619,2634.9,2634.3,3.2078]
[1739458852296,3.96671,2635.3,2634.3,3.2078]
[1739458852496,3.2078,2635.3,2634.4,1.7849]
[1739458852698,3.96679,2635.0,2634.6,0.75906]
[1739458852900,0.00570028,2635.1,2634.3,2.052]
[1739458852901,0.7591,2634.6,2634.3,2.052]
[1739458853197,3.2078,2634.4,2634.1,2.052]
[1739458853402,0.75919,2634.3,2634.1,2.052]
[1739458853603,3.2078,2634.4,2634.1,2.052]
[1739458853812,3.96696,2634.4,2634.1,2.052]
[1739458854103,3.2078,2634.4,2634.1,2.052]
[1739458854309,3.2078,2634.4,2633.8,3.21350028]
[1739458854507,3.96709,2633.9,2633.8,0.00570028]
[1739458854902,3.2078,2633.9,2633.0,22.70253]
[1739458855101,3.96716,2633.7,2633.0,21.943]
[1739458855301,3.2078,2633.7,2633.4,0.75941]
[1739458855508,3.96715,2633.7,2633.4,0.75942]
[1739458855709,3.2078,2633.7,2633.1,3.2078]
[1739458855900,3.2078,2633.7,2633.5,0.75939]
[1739458856101,3.21350028,2633.7,2633.1,3.21350028]
[1739458856706,0.75938,2633.6,2633.1,3.21350028]
[1739458856904,0.75947,2633.3,2633.1,0.00570028]
[1739458857105,0.75949,2633.2,2633.1,0.00570028]
[1739458857309,3.2078,2633.4,2633.1,0.00570028]
[1739458857504,0.75948,2633.3,2633.1,0.00570028]
[1739458857706,3.2078,2633.4,2633.1,0.76521028]
[1739458857912,2.69799,2633.6,2633.1,0.00570028]
[1739458858113,3.7987,2633.6,2633.1,0.00570028]
[1739458858603,3.2078,2633.2,2633.1,0.00570028]
[1739458859414,3.2078,2633.2,2633.1,0.76522028]
[1739458859711,3.96729,2633.2,2633.1,0.00570028]
[1739458861311,3.2078,2633.2,2632.3,2.36688871]
[1739458861505,3.2078,2632.7,2632.3,2.36688871]
[1739458861714,3.2078,2632.7,2632.3,0.31588871]
[1739458861910,3.2078,2633.2,2632.2,42.6994]
[1739458862118,0.75967,2632.6,2632.2,40.8]
[1739458862323,0.7597,2632.5,2632.3,0.75973]
[1739458862506,2.80210028,2632.7,2632.6,0.75966]
[1739458862707,3.2078,2633.4,2633.3,0.75946]
[1739458862919,3.96707,2634.0,2633.6,0.75938]
[1739458863211,3.2078,2634.0,2633.6,0.75938]
[1739458863413,0.75931,2633.9,2633.6,0.75938]
[1739458863612,3.2078,2634.0,2633.6,0.75938]
[1739458865117,5.82698,2634.3,2634.1,0.75922]
[1739458865308,5.0678,2634.3,2633.8,2.051]
[1739458865508,0.7592,2634.2,2633.8,0.75929]
[1739458865710,5.0678,2634.3,2633.9,2.051]
[1739458866218,0.75929,2633.9,2633.8,0.00570028]
[1739458866412,3.96709,2633.9,2633.8,0.00570028]
[1739458866613,3.2078,2633.9,2633.8,0.00570028]
[1739458866914,3.2078,2633.9,2633.8,0.76502028]
[1739458867117,0.1174,2633.9,2633.8,0.76502028]
[1739458868111,3.2078,2634.8,2633.9,1.89821]
[1739458868318,3.2078,2635.1,2634.3,1.89794]
[1739458868513,3.2078,2635.1,2634.4,2.05]
[1739458868715,3.2078,2635.1,2634.4,2.35390536]
[1739458869021,3.2078,2635.1,2635.0,0.75897]
[1739458869216,1.7745,2635.3,2635.0,3.2078]
[1739458869521,1.863,2635.8,2635.1,1.89733]
[1739458869719,3.2078,2636.4,2635.4,3.2078]
[1739458869917,3.2078,2636.1,2635.9,0.7587]
[1739458870217,3.2078,2636.1,2635.5,2.05]
[1739458870218,0.75873,2635.9,2635.5,2.05]
[1739458870413,0.75878,2635.7,2635.3,2.05]
[1739458870618,1.863,2635.6,2635.5,0.75883]
[1739458870808,1.863,2635.6,2635.3,2.05]
[1739458871011,1.863,2635.6,2635.2,0.00570028]
[1739458871520,1.77826379,2635.8,2635.6,0.75878]
[1739458871722,0.00376379,2635.8,2635.7,0.75877]
[1739458872421,0.00376379,2635.8,2635.4,6.9313]
[1739458872422,0.00376379,2635.8,2635.6,0.75878]
[1739458872616,3.21156379,2635.8,2635.4,2.58264]
[1739458872918,3.2078,2635.5,2635.2,2.05470028]
[1739458873120,5.01416379,2635.8,2635.2,2.05470028]
[1739458873326,5.77291379,2635.8,2635.2,2.05470028]
[1739458873528,3.2078,2635.5,2635.2,2.05470028]
[1739458873714,3.2078,2635.5,2635.2,0.00570028]
[1739458873914,0.75889,2635.3,2635.2,0.00570028]
[1739458875523,5.2568,2635.5,2635.2,0.00570028]
[1739458875716,3.2078,2635.5,2635.2,0.00570028]
[1739458875917,0.75887,2635.4,2635.2,0.76461028]
[1739458876121,0.75887,2635.4,2635.2,0.00570028]
[1739458876322,3.2078,2635.5,2635.2,0.00570028]
[1739458876623,5.01416379,2635.8,2635.2,0.00570028]
[1739458876921,3.2078,2635.4,2635.2,0.00570028]
[1739458877119,3.2078,2635.4,2635.2,0.76461028]
[1739458877419,3.2078,2635.7,2635.3,0.75889]
[1739458877616,3.2078,2635.7,2635.2,0.00570028]
[1739458878016,3.2078,2635.4,2635.2,0.00570028]
[1739458878821,3.96667,2635.4,2635.2,0.00570028]
[1739458879022,3.2078,2635.4,2635.2,0.00570028]
[1739458879322,3.2078,2635.4,2635.2,0.76460028]
[1739458879622,3.2078,2635.4,2635.2,0.00570028]
[1739458879922,3.2078,2635.7,2635.6,0.7588]
[1739458880821,3.2078,2635.7,2635.2,0.00570028]
[1739458881121,3.96669,2635.3,2635.2,0.00570028]
[1739458881417,3.96669,2635.3,2634.1,5.2558]
[1739458881418,3.2078,2635.3,2634.1,5.2558]
[1739458881616,3.2078,2634.5,2634.3,0.75917]
[1739458881811,3.2078,2634.5,2634.1,0.75922]
[1739458882017,4.40636302,2635.0,2633.8,0.7593]
[1739458882018,0.75926,2634.0,2633.8,0.7593]
[1739458882224,3.2078,2633.9,2633.8,0.75932]
[1739458882418,3.2078,2633.9,2633.4,1.89858]
[1739458882721,3.2078,2633.9,2632.9,6.19866302]
[1739458882722,2.048,2633.8,2633.6,0.00570028]
[1739458882919,2.048,2633.8,2632.5,0.31336763]
[1739458883122,3.2078,2633.3,2633.0,0.75953]
[1739458883321,3.2078,2633.3,2632.9,0.75956]
[1739458883517,3.2078,2633.6,2632.8,1.89902]
[1739458883722,3.2078,2633.9,2632.9,4.40636302]
[1739458883928,3.2078,2633.9,2633.0,5.2558]
[1739458884123,0.75938,2633.6,2633.1,0.00570028]
[1739458884420,0.75949,2633.2,2633.1,0.00570028]
[1739458884621,3.96729,2633.2,2633.1,0.00570028]
[1739458885229,3.2078,2633.2,2633.1,0.00570028]
[1739458886422,1.8839,2633.5,2633.1,0.00570028]
[1739458886627,1.8839,2633.5,2633.2,0.75947]
[1739458886828,1.8839,2633.5,2633.3,0.75945]
[1739458887123,1.8839,2633.5,2633.1,0.00570028]
[1739458887324,3.2078,2633.6,2633.5,0.7594]
[1739458887530,3.2078,2633.6,2633.2,1.8533]
[1739458887729,4.9828,2634.0,2633.4,3.2078]
[1739458887929,0.00570028,2634.1,2633.5,2.048]
[1739458888226,3.2078,2634.0,2633.5,2.048]
[1739458888529,3.96707,2634.0,2633.6,0.75937]
[1739458888731,3.2078,2634.0,2633.7,0.75932]
[1739458889024,3.2078,2634.0,2633.6,40.8]
[1739458889419,0.75938,2633.6,2633.2,1.8533]
[1739458889632,3.2078,2633.7,2633.3,0.75945]
[1739458889822,3.2078,2633.7,2633.3,0.75943]
[1739458890019,3.2078,2633.7,2633.2,1.8533]
[1739458890222,3.2078,2633.7,2633.4,0.75942]
[1739458890424,3.2078,2634.0,2633.2,5.0611]
[1739458890724,3.2078,2633.7,2633.2,1.8533]
[1739458890926,3.96716,2633.7,2633.2,1.8533]
[1739458891127,3.2078,2634.0,2633.2,5.0611]
[1739458891323,0.7593,2633.9,2633.5,0.75939]
[1739458891630,0.7593,2633.9,2633.2,5.0611]
[1739458891631,0.7593,2633.9,2633.3,40.8]
[1739458891826,3.96716,2633.7,2633.2,1.8533]
[1739458892033,3.2078,2633.4,2633.1,0.00570028]
[1739458892334,3.2078,2633.4,2633.2,0.75947]
[1739458892527,3.2078,2633.4,2633.1,0.00570028]
[1739458892726,0.75948,2633.3,2633.1,0.00570028]
[1739458892928,3.2078,2633.4,2633.1,0.00570028]
[1739458893134,3.2078,2633.4,2632.5,0.75967]
[1739458893330,3.2078,2632.9,2632.8,0.75961]
[1739458893926,3.2078,2632.9,2632.2,2.048]
[1739458894233,3.2078,2632.9,2632.3,0.00570028]
[1739458894432,3.2078,2632.9,2632.8,0.75961]
[1739458895033,3.2078,2632.9,2632.3,3.21350028]
[1739458895329,3.2078,2632.6,2632.4,0.75971]
[1739458895529,5.80853,2632.8,2632.3,0.00570028]
[1739458895736,5.0489,2632.8,2632.6,0.75965]
[1739458896030,5.81421028,2632.8,2632.3,0.00570028]
[1739458896232,5.81421028,2632.8,2632.4,0.75971]
[1739458896233,0.75964,2632.7,2632.4,0.75971]
[1739458896434,5.05460028,2632.8,2632.3,0.00570028]
[1739458896634,5.05460028,2632.8,2632.6,0.75965]
[1739458897133,5.05460028,2632.8,2632.3,0.00570028]
[1739458897331,3.2078,2632.7,2632.3,0.00570028]
[1739458897836,3.2078,2632.7,2632.3,0.76544028]
[1739458897837,0.75968,2632.6,2632.3,0.76544028]
[1739458898136,0.7597,2632.5,2632.3,0.76544028]
[1739458898334,3.2078,2632.7,2632.3,0.00570028]
[1739458898931,1.84680028,2632.8,2632.3,0.00570028]
[1739458899235,0.00570028,2632.8,2632.7,0.75963]
[1739458900030,3.2078,2633.0,2632.9,0.75958]
[1739458900326,0.75945,2633.4,2632.9,5.2558]
[1739458900529,3.2078,2633.3,2633.1,0.7595]
[1739458900724,3.96728,2633.3,2633.0,0.75953]
[1739458901031,5.1008,2633.6,2633.2,0.75948]
[1739458901236,5.86018,2633.6,2633.4,0.75942]
[1739458901441,5.1008,2633.6,2632.9,7.15471]
[1739458901638,3.2078,2633.3,2633.2,0.75949]
[1739458902234,3.2078,2633.3,2632.9,5.2558]
[1739458902537,3.2078,2633.3,2632.9,3.2078]
[1739458902739,0.75956,2633.0,2632.7,0.75961]
[1739458902938,3.2078,2633.0,2632.7,0.75961]
[1739458903134,1.8573,2633.2,2633.1,0.75952]